fUST/lending_fUST_20240413
["ID","MTS","AMOUNT","RATE_DAILY","PERIOD"]
[322325524,1712955045855,-500.0,0.00054794,120]
[322325525,1712955045864,-500.0,0.00054794,120]
[322325526,1712955045879,-505.72965675,0.00054794,120]
[322325527,1712955045889,-500.0,0.00054794,120]
[322325528,1712955045899,-500.0,0.00054794,120]
[322325529,1712955045908,-500.0,0.00054794,120]
[322325530,1712955045919,-500.0,0.00054794,120]
[322325531,1712955045929,-594.49369552,0.00054794,120]
[322325532,1712955045938,-500.0,0.00054794,120]
[322325533,1712955045948,-500.0,0.00054794,120]
[322325535,1712955045958,-500.0,0.00054794,120]
[322325536,1712955045967,-500.0,0.00054794,120]
[322325537,1712955045976,-500.0,0.00054794,120]
[322325538,1712955045986,-342.82346828,0.00054794,120]
[322325539,1712955045996,-729.85,0.00054794,120]
[322325540,1712955046005,-500.0,0.00054794,120]
[322325541,1712955046014,-500.0,0.00054794,120]
[322325542,1712955046022,-500.0,0.00054794,120]
[322325543,1712955046031,-500.0,0.00054794,120]
[322325544,1712955046041,-772.73,0.00054794,120]
[322325545,1712955046055,-500.0,0.00054794,120]
[322325546,1712955046064,-500.0,0.00054794,120]
[322325548,1712955046073,-500.0,0.00054794,120]
[322325550,1712955046082,-500.0,0.00054794,120]
[322325552,1712955046091,-500.0,0.00054794,120]
[322325553,1712955046101,-1547.65,0.00054794,120]
[322325554,1712955046110,-500.0,0.00054794,120]
[322325555,1712955046120,-1540.92,0.00054794,120]
[322325557,1712955046129,-500.0,0.00054794,120]
[322325559,1712955046138,-401.6539953,0.00054794,120]
[322325560,1712955046147,-500.0,0.00054794,120]
[322325562,1712955046157,-500.0,0.00054794,120]
[322325563,1712955046166,-504.44726382,0.00054794,120]
[322325564,1712955046174,-500.0,0.00054794,120]
[322325565,1712955046184,-584.44120467,0.00054794,120]
[322325566,1712955046193,-500.0,0.00054794,120]
[322325567,1712955046202,-500.0,0.00054794,120]
[322325568,1712955046211,-434.09416555,0.00054794,120]
[322325569,1712955046221,-500.0,0.00054794,120]
[322325570,1712955046230,-505.04673356,0.00054794,120]
[322325571,1712955046240,-853.08,0.00054794,120]
[322325572,1712955046249,-500.0,0.00054794,120]
[322325573,1712955046259,-500.0,0.00054794,120]
[322325574,1712955046269,-538.76934425,0.00054794,120]
[322325575,1712955046278,-500.0,0.00054794,120]
[322325576,1712955046290,-500.0,0.00054794,120]
[322325577,1712955046302,-440.23207232,0.00054794,120]
[322325578,1712955046312,-500.0,0.00054794,120]
[322325579,1712955046321,-500.0,0.00054794,120]
[322325580,1712955046330,-927.97,0.00054794,120]
[322325581,1712955046340,-329.03838504,0.00054794,120]
[322325582,1712955046349,-500.0,0.00054794,120]
[322325583,1712955046358,-500.0,0.00054794,120]
[322325584,1712955046368,-500.0,0.00054794,120]
[322325585,1712955046377,-500.0,0.00054794,120]
[322325586,1712955046387,-500.0,0.00054794,120]
[322325587,1712955046396,-500.0,0.00054794,120]
[322325588,1712955046405,-500.0,0.00054794,120]
[322325589,1712955046414,-500.0,0.00054794,120]
[322325590,1712955046487,-3281.2,0.00054794,120]
[322325591,1712955046497,-3093.01,0.00054794,120]
[322325592,1712955046506,-285.03244185,0.00054794,120]
[322325593,1712955046515,-500.0,0.00054794,120]
[322325594,1712955046524,-500.0,0.00054794,120]
[322325595,1712955046533,-505.17227875,0.00054794,120]
[322325596,1712955046543,-500.0,0.00054794,120]
[322325597,1712955046555,-502.50360943,0.00054794,120]
[322325598,1712955046564,-500.0,0.00054794,120]
[322325599,1712955046574,-500.0,0.00054794,60]
[322325600,1712955046583,-500.0,0.00054794,120]
[322325602,1712955046592,-500.0,0.00054794,120]
[322325603,1712955046601,-500.0,0.00054794,120]
[322325605,1712955046610,-500.0,0.00054794,120]
[322325606,1712955046619,-500.0,0.00054794,120]
[322325607,1712955046628,-500.0,0.00054794,120]
[322325608,1712955046637,-1026.41,0.00054794,120]
[322325609,1712955046646,-518.94341513,0.00054794,120]
[322325610,1712955046655,-500.0,0.00054794,120]
[322325611,1712955046665,-500.0,0.00054794,120]
[322325612,1712955046674,-500.0,0.00054794,120]
[322325613,1712955046683,-500.0,0.00054794,120]
[322325614,1712955046692,-500.0,0.00054794,120]
[322325615,1712955046702,-2960.04,0.00054794,120]
[322325616,1712955046711,-500.0,0.00054794,120]
[322325617,1712955046720,-500.0,0.00054794,120]
[322325618,1712955046729,-500.0,0.00054794,120]
[322325619,1712955046738,-585.2681263,0.00054794,120]
[322325620,1712955046747,-500.0,0.00054794,120]
[322325621,1712955046756,-500.0,0.00054794,120]
[322325622,1712955046765,-500.0,0.00054794,120]
[322325623,1712955046774,-500.0,0.00054794,120]
[322325624,1712955046783,-2768.02,0.00054794,120]
[322325625,1712955046793,-162.44536166,0.00054794,120]
[322325626,1712955046803,-500.0,0.00054794,120]
[322325627,1712955046812,-504.27931502,0.00054794,120]
[322325628,1712955046822,-500.0,0.00054794,120]
[322325629,1712955046831,-500.0,0.00054794,120]
[322325630,1712955046841,-500.0,0.00054794,120]
[322325631,1712955046851,-500.0,0.00054794,120]
[322325632,1712955046860,-503.32081109,0.00054794,120]
[322325633,1712955046872,-500.0,0.00054794,120]
[322325635,1712955046881,-500.0,0.00054794,120]
[322325637,1712955046892,-500.0,0.00054794,120]
[322325638,1712955046901,-1078.82,0.00054794,120]
[322325639,1712955046910,-500.0,0.00054794,120]
[322325641,1712955046920,-500.0,0.00054794,120]
[322325643,1712955046929,-500.0,0.00054794,120]
[322325644,1712955046938,-500.0,0.00054794,120]
[322325645,1712955046946,-2212.06,0.00054794,120]
[322325646,1712955046955,-500.0,0.00054794,120]
[322325647,1712955046967,-500.0,0.00054794,120]
[322325649,1712955046977,-500.0,0.00054794,120]
[322325651,1712955046986,-500.0,0.00054794,120]
[322325653,1712955046995,-500.0,0.00054794,120]
[322325655,1712955047004,-500.0,0.00054794,120]
[322325657,1712955047013,-500.0,0.00054794,120]
[322325658,1712955047022,-500.0,0.00054794,120]
[322325659,1712955047032,-500.0,0.00054794,120]
[322325660,1712955047041,-1471.15,0.00054794,120]
[322325661,1712955047051,-1000.0,0.00054794,7]
[322325662,1712955047061,-822.44,0.00054794,120]
[322325663,1712955047071,-500.0,0.00054794,120]
[322325664,1712955047081,-500.0,0.00054794,120]
[322325665,1712955047090,-512.33534483,0.00054794,120]
[322325666,1712955047100,-1173.85,0.00054794,120]
[322325667,1712955047109,-500.0,0.00054794,120]
[322325668,1712955047119,-1337.04,0.00054794,120]
[322325669,1712955047128,-500.0,0.00054794,120]
[322325670,1712955047138,-500.0,0.00054794,120]
[322325671,1712955047148,-374.14526902,0.00054794,120]
[322325672,1712955047157,-500.0,0.00054794,120]
[322325673,1712955047166,-500.0,0.00054794,120]
[322325674,1712955047176,-500.0,0.00054794,120]
[322325675,1712955047185,-500.0,0.00054794,120]
[322325676,1712955047195,-1071.4,0.00054794,120]
[322325677,1712955047204,-500.0,0.00054794,120]
[322325678,1712955047213,-238.85494848,0.00054794,120]
[322325679,1712955047222,-500.0,0.00054794,120]
[322325680,1712955047232,-574.41947554,0.00054794,120]
[322325681,1712955047242,-506.68,0.00054794,120]
[322325682,1712955047251,-500.0,0.00054794,120]
[322325683,1712955047261,-1000.0,0.00054794,120]
[322325684,1712955047270,-36278.98,0.00054794,120]
[322325685,1712955047279,-500.0,0.00054794,120]
[322325686,1712955047289,-500.0,0.00054794,120]
[322325687,1712955047300,-533.59,0.00054794,120]
[322325688,1712955047310,-500.0,0.00054794,120]
[322325689,1712955047319,-513.00692363,0.00054794,120]
[322325690,1712955047329,-500.0,0.00054794,120]
[322325691,1712955047339,-500.0,0.00054794,120]
[322325692,1712955047349,-500.0,0.00054794,120]
[322325693,1712955047358,-274.5924307,0.00054794,120]
[322325694,1712955047368,-500.0,0.00054794,120]
[322325695,1712955047377,-500.0,0.00054794,120]
[322325696,1712955047386,-500.0,0.00054794,120]
[322325697,1712955047398,-572.69,0.00054794,120]
[322325698,1712955047407,-500.0,0.00054794,120]
[322325699,1712955047417,-507.36606183,0.00054794,120]
[322325700,1712955047426,-11478.24,0.00054794,120]
[322325701,1712955047435,-300.0,0.00054794,7]
[322325702,1712955047444,-500.0,0.00054794,120]
[322325703,1712955047453,-500.0,0.00054794,120]
[322325704,1712955047462,-500.0,0.00054794,120]
[322325705,1712955047472,-500.0,0.00054794,120]
[322325706,1712955047481,-500.0,0.00054794,120]
[322325707,1712955047490,-500.0,0.00054794,120]
[322325708,1712955047499,-1168.5,0.00054794,120]
[322325709,1712955047510,-500.0,0.00054794,120]
[322325710,1712955047519,-860.37,0.00054794,120]
[322325711,1712955047528,-2849.42,0.00054794,21]
[322325712,1712955047538,-500.0,0.00054794,120]
[322325713,1712955047548,-500.0,0.00054794,120]
[322325714,1712955047557,-503.98101006,0.00054794,120]
[322325715,1712955047566,-500.0,0.00054794,120]
[322325716,1712955047576,-500.0,0.00054794,120]
[322325717,1712955047585,-500.0,0.00054794,120]
[322325718,1712955047594,-500.0,0.00054794,120]
[322325719,1712955047603,-500.0,0.00054794,120]
[322325720,1712955047612,-500.0,0.00054794,120]
[322325721,1712955047620,-500.0,0.00054794,120]
[322325722,1712955047629,-500.0,0.00054794,120]
[322325723,1712955047638,-193.08517013,0.00054794,120]
[322325724,1712955047647,-500.0,0.00054794,120]
[322325725,1712955047656,-500.0,0.00054794,120]
[322325726,1712955047666,-500.0,0.00054794,120]
[322325727,1712955047675,-500.0,0.00054794,120]
[322325728,1712955047684,-500.0,0.00054794,120]
[322325729,1712955047693,-500.0,0.00054794,120]
[322325730,1712955047703,-500.0,0.00054794,120]
[322325731,1712955047712,-500.0,0.00054794,120]
[322325732,1712955047723,-586.09549858,0.00054794,120]
[322325733,1712955047734,-500.0,0.00054794,120]
[322325734,1712955047745,-500.0,0.00054794,120]
[322325735,1712955047755,-1162.52,0.00054794,120]
[322325736,1712955047764,-500.0,0.00054794,120]
[322325737,1712955047775,-227.67976332,0.00054794,120]
[322325738,1712955047785,-500.0,0.00054794,120]
[322325739,1712955047795,-500.0,0.00054794,120]
[322325740,1712955047872,-1197.24,0.00054794,120]
[322325741,1712955047883,-500.0,0.00054794,120]
[322325742,1712955047895,-557.46006368,0.00054794,120]
[322325743,1712955047904,-617.19848953,0.00054794,120]
[322325744,1712955047913,-500.0,0.00054794,120]
[322325745,1712955047925,-920.56,0.00054794,120]
[322325746,1712955047934,-500.0,0.00054794,120]
[322325747,1712955047943,-500.0,0.00054794,120]
[322325748,1712955047952,-500.0,0.00054794,120]
[322325749,1712955047962,-500.0,0.00054794,120]
[322325750,1712955047971,-500.0,0.00054794,120]
[322325751,1712955047982,-500.0,0.00054794,120]
[322325752,1712955047991,-500.0,0.00054794,120]
[322325753,1712955048001,-500.0,0.00054794,120]
[322325754,1712955048011,-500.0,0.00054794,120]
[322325755,1712955048021,-500.0,0.00054794,120]
[322325756,1712955048032,-500.0,0.00054794,120]
[322325757,1712955048042,-259.92770034,0.00054794,120]
[322325758,1712955048054,-500.0,0.00054794,120]
[322325759,1712955048065,-500.0,0.00054794,120]
[322325760,1712955048078,-500.0,0.00054794,120]
[322325761,1712955048088,-500.0,0.00054794,120]
[322325762,1712955048099,-500.0,0.00054794,120]
[322325763,1712955048109,-500.0,0.00054794,120]
[322325764,1712955048120,-500.0,0.00054794,120]
[322325765,1712955048130,-514.59037785,0.00054794,7]
[322325766,1712955048140,-500.0,0.00054794,120]
[322325767,1712955048149,-500.32403526,0.00054794,120]
[322325768,1712955048159,-500.0,0.00054794,120]
[322325769,1712955048168,-500.0,0.00054794,120]
[322325770,1712955048177,-500.0,0.00054794,120]
[322325771,1712955048187,-500.0,0.00054794,120]
[322325772,1712955048196,-500.0,0.00054794,120]
[322325773,1712955048206,-500.0,0.00054794,120]
[322325774,1712955048215,-500.0,0.00054794,120]
[322325775,1712955048225,-500.0,0.00054794,120]
[322325776,1712955048234,-500.0,0.00054794,120]
[322325777,1712955048243,-1333.33,0.00054794,120]
[322325778,1712955048253,-500.0,0.00054794,120]
[322325779,1712955048262,-372.2863913,0.00054794,120]
[322325780,1712955048271,-500.0,0.00054794,120]
[322325781,1712955048281,-500.0,0.00054794,120]
[322325782,1712955048290,-500.0,0.00054794,120]
[322325783,1712955048302,-500.0,0.00054794,120]
[322325784,1712955048311,-500.0,0.00054794,120]
[322325785,1712955048321,-2333.51,0.00054794,120]
[322325786,1712955048331,-500.0,0.00054794,120]
[322325787,1712955048341,-292.63875805,0.00054794,120]
[322325788,1712955048350,-500.0,0.00054794,120]
[322325789,1712955048361,-153.20965356,0.00054794,120]
[322325790,1712955048370,-1860.05,0.00054794,120]
[322325791,1712955048380,-1669.23,0.00054794,120]
[322325792,1712955048389,-500.0,0.00054794,120]
[322325793,1712955048398,-500.0,0.00054794,2]
[322325794,1712955048408,-500.0,0.00054794,120]
[322325795,1712955048417,-506.91497064,0.00054794,120]
[322325796,1712955048426,-500.0,0.00054794,120]
[322325797,1712955048437,-500.0,0.00054794,120]
[322325798,1712955048447,-500.0,0.00054794,120]
[322325799,1712955048456,-8655.52,0.00054794,120]
[322325800,1712955048466,-500.0,0.00054794,120]
[322325801,1712955048475,-4029.35,0.00054794,120]
[322325802,1712955048485,-1247.25,0.00054794,120]
[322325803,1712955048495,-500.0,0.00054794,120]
[322325804,1712955048505,-1838.38,0.00054794,120]
[322325805,1712955048514,-162.26280348,0.00054795,120]
[322325806,1712955048524,-162.26280348,0.00054795,120]
[322325807,1712955048533,-162.26280348,0.00054795,120]
[322325808,1712955048543,-162.26280348,0.00054795,120]
[322325809,1712955048556,-162.76,0.00054795,120]
[322325810,1712955048566,-162.33780348,0.00054795,120]
[322325811,1712955048577,-162.33780348,0.00054795,120]
[322325812,1712955048586,-162.33780348,0.00054795,120]
[322325813,1712955048596,-162.33780348,0.00054795,120]
[322325814,1712955048605,-162.33780348,0.00054795,120]
[322325815,1712955048614,-162.33780348,0.00054795,120]
[322325816,1712955048624,-162.33780348,0.00054795,120]
[322325817,1712955048634,-162.33780348,0.00054795,120]
[322325818,1712955048643,-162.33780348,0.00054795,120]
[322325819,1712955048652,-162.33780348,0.00054795,120]
[322325820,1712955048661,-162.33780348,0.00054795,120]
[322325821,1712955048671,-162.33780348,0.00054795,120]
[322325822,1712955048680,-162.33780348,0.00054795,120]
[322325823,1712955048688,-162.33780348,0.00054795,120]
[322325824,1712955048697,-162.33780348,0.00054795,120]
[322325825,1712955048707,-162.33780348,0.00054795,120]
[322325826,1712955048717,-162.33780348,0.00054795,120]
[322325827,1712955048726,-162.33780348,0.00054795,120]
[322325828,1712955048735,-162.33780348,0.00054795,120]
[322325829,1712955048745,-162.83,0.00054795,120]
[322325830,1712955048754,-150.9107837,0.00054795,120]
[322325831,1712955048763,-151.41,0.00054795,120]
[322325832,1712955048773,-151.0982837,0.00054795,120]
[322325833,1712955048784,-151.0982837,0.00054795,120]
[322325834,1712955048793,-151.0982837,0.00054795,120]
[322325835,1712955048807,-151.0982837,0.00054795,120]
[322325836,1712955048817,-151.0982837,0.00054795,120]
[322325837,1712955048826,-151.0982837,0.00054795,120]
[322325838,1712955048835,-151.0982837,0.00054795,120]
[322325839,1712955048844,-151.59,0.00054795,120]
[322325840,1712955048853,-157.3428264,0.00054795,120]
[322325841,1712955048862,-157.3428264,0.00054795,120]
[322325842,1712955048875,-157.3428264,0.00054795,120]
[322325843,1712955048884,-157.3428264,0.00054795,120]
[322325844,1712955048893,-157.3428264,0.00054795,120]
[322325845,1712955048902,-157.3428264,0.00054795,120]
[322325846,1712955048913,-157.3428264,0.00054795,120]
[322325847,1712955048922,-157.3428264,0.00054795,120]
[322325848,1712955048931,-157.3428264,0.00054795,120]
[322325849,1712955048939,-163.300486,0.00054795,2]
[322325850,1712955048949,-156.33789011,0.00054945,60]
[322325851,1712955048959,-154.35341204,0.00054985,60]
[322325852,1712955048968,-153.51248377,0.00055395,120]
[322325853,1712955048978,-154.35341204,0.00055414,120]
[322325854,1712955048987,-1799.97122019,0.000557,120]
[322325855,1712955048996,-8677.0,0.00055711,10]
[322325856,1712955049005,-393.002314,0.00056236,2]
[322325857,1712955049015,-157.807356,0.00056236,2]
[322325858,1712955049024,-319.294618,0.00056236,2]
[322325859,1712955049033,-500.0,0.00056712,120]
[322325860,1712955049043,-500.0,0.00056712,120]
[322325861,1712955049055,-538.01728587,0.00056712,120]
[322325862,1712955049064,-500.0,0.00056712,120]
[322325863,1712955049073,-500.0,0.00056712,120]
[322325864,1712955049082,-500.0,0.00056712,120]
[322325865,1712955049091,-500.0,0.00056712,120]
[322325866,1712955049101,-500.0,0.00056712,120]
[322325867,1712955049111,-500.0,0.00056712,120]
[322325868,1712955049174,-500.0,0.00056712,120]
[322325869,1712955049193,-516.20327059,0.00056712,120]
[322325870,1712955049202,-500.0,0.00056712,120]
[322325871,1712955049212,-500.0,0.00056712,120]
[322325872,1712955049222,-500.0,0.00056712,120]
[322325873,1712955049232,-500.0,0.00056712,120]
[322325874,1712955049241,-500.0,0.00056712,120]
[322325875,1712955049251,-561.66,0.00056712,120]
[322325876,1712955049261,-870.64,0.00056712,120]
[322325877,1712955049270,-158.09608025,0.00056712,120]
[322325878,1712955049280,-500.0,0.00056712,120]
[322325879,1712955049289,-500.0,0.00056712,120]
[322325880,1712955049301,-500.0,0.00056712,120]
[322325881,1712955049310,-500.0,0.00056712,120]
[322325882,1712955049319,-305.05661755,0.00056712,120]
[322325883,1712955049331,-500.0,0.00056712,120]
[322325884,1712955049342,-500.0,0.00056712,120]
[322325885,1712955049351,-500.0,0.00056712,120]
[322325886,1712955049360,-500.0,0.00056712,120]
[322325887,1712955049370,-500.0,0.00056712,120]
[322325888,1712955049380,-500.0,0.00056712,120]
[322325889,1712955049389,-501.33363956,0.00056712,120]
[322325890,1712955049400,-500.0,0.00056712,120]
[322325891,1712955049409,-500.0,0.00056712,120]
[322325892,1712955049418,-500.0,0.00056712,120]
[322325893,1712955049428,-574.28345912,0.00056712,120]
[322325894,1712955049437,-500.0,0.00056712,120]
[322325895,1712955049446,-500.0,0.00056712,120]
[322325896,1712955049456,-500.0,0.00056712,120]
[322325897,1712955049465,-511.18067452,0.00056712,7]
[322325898,1712955049475,-500.0,0.00056712,120]
[322325899,1712955049484,-500.0,0.00056712,120]
[322325900,1712955049494,-502.80133101,0.00056712,120]
[322325901,1712955049504,-500.0,0.00056712,120]
[322325902,1712955049513,-500.0,0.00056712,120]
[322325903,1712955049523,-233.5454295,0.00056712,120]
[322325904,1712955049532,-500.0,0.00056712,120]
[322325905,1712955049541,-500.0,0.00056712,120]
[322325906,1712955049551,-500.0,0.00056712,120]
[322325907,1712955049561,-501.34104571,0.00056712,120]
[322325908,1712955049570,-503.14677591,0.00056712,120]
[322325909,1712955049578,-505.47466413,0.00056712,120]
[322325910,1712955049588,-500.0,0.00056712,120]
[322325911,1712955049597,-500.0,0.00056712,120]
[322325912,1712955049606,-500.0,0.00056712,20]
[322325913,1712955049614,-500.0,0.00056712,14]
[322325914,1712955049624,-500.0,0.00056712,120]
[322325915,1712955049633,-500.0,0.00056712,120]
[322325916,1712955049643,-500.0,0.00056712,120]
[322325917,1712955049652,-500.0,0.00056712,120]
[322325918,1712955049661,-500.0,0.00056712,120]
[322325919,1712955049670,-500.0,0.00056712,120]
[322325920,1712955049679,-500.0,0.00056712,120]
[322325921,1712955049689,-500.0,0.00056712,120]
[322325922,1712955049699,-500.0,0.00056712,120]
[322325923,1712955049708,-500.0,0.00056712,120]
[322325924,1712955049717,-506.01104219,0.00056712,120]
[322325925,1712955049726,-1019.03,0.00056712,120]
[322325926,1712955049735,-500.0,0.00056712,120]
[322325927,1712955049744,-500.0,0.00056712,120]
[322325928,1712955049754,-500.0,0.00056712,120]
[322325929,1712955049763,-502.47706265,0.00056712,120]
[322325930,1712955049772,-500.0,0.00056712,120]
[322325931,1712955049782,-500.0,0.00056712,120]
[322325932,1712955049791,-200.01892995,0.00056712,120]
[322325933,1712955049800,-500.0,0.00056712,120]
[322325934,1712955049809,-500.0,0.00056712,120]
[322325935,1712955049819,-538.75166249,0.00056712,120]
[322325936,1712955049828,-500.0,0.00056712,120]
[322325937,1712955049838,-503.44069417,0.00056712,120]
[322325938,1712955049847,-502.44812612,0.00056712,120]
[322325939,1712955049856,-500.0,0.00056712,120]
[322325940,1712955049865,-500.0,0.00056712,120]
[322325941,1712955049875,-500.0,0.00056712,120]
[322325942,1712955049884,-500.0,0.00056712,120]
[322325943,1712955049896,-500.0,0.00056712,120]
[322325944,1712955049906,-500.0,0.00056712,120]
[322325945,1712955049915,-500.0,0.00056712,120]
[322325946,1712955049924,-500.0,0.00056712,120]
[322325947,1712955049934,-500.0,0.00056712,120]
[322325948,1712955049943,-500.0,0.00056712,120]
[322325949,1712955049952,-345.84964995,0.00056712,120]
[322325950,1712955049961,-500.0,0.00056712,120]
[322325951,1712955049971,-506.76260085,0.00056712,120]
[322325952,1712955049979,-516.65577381,0.00056712,120]
[322325953,1712955049989,-500.0,0.00056712,120]
[322325954,1712955049998,-500.0,0.00056712,120]
[322325955,1712955050007,-270.35237407,0.00056712,120]
[322325956,1712955050016,-500.0,0.00056712,120]
[322325957,1712955050025,-500.0,0.00056712,120]
[322325958,1712955050035,-500.0,0.00056712,120]
[322325959,1712955050044,-497.82549668,0.00056712,120]
[322325960,1712955050057,-503.46078899,0.00056712,120]
[322325961,1712955050067,-500.0,0.00056712,120]
[322325962,1712955050077,-500.0,0.00056712,120]
[322325963,1712955050087,-500.0,0.00056712,120]
[322325964,1712955050097,-500.0,0.00056712,120]
[322325965,1712955050108,-500.0,0.00056712,120]
[322325966,1712955050119,-1581.45,0.00056712,60]
[322325967,1712955050129,-500.0,0.00056712,120]
[322325968,1712955050140,-500.0,0.00056712,120]
[322325969,1712955050150,-500.0,0.00056712,120]
[322325970,1712955050160,-500.0,0.00056712,120]
[322325971,1712955050171,-500.0,0.00056712,120]
[322325972,1712955050181,-500.0,0.00056712,120]
[322325973,1712955050192,-506.57900694,0.00056712,120]
[322325974,1712955050203,-890.22,0.00056712,120]
[322325975,1712955050213,-500.0,0.00056712,120]
[322325976,1712955050224,-453.18205693,0.00056712,120]
[322325977,1712955050234,-509.44246151,0.00056712,120]
[322325978,1712955050243,-500.0,0.00056712,120]
[322325979,1712955050252,-500.0,0.00056712,120]
[322325980,1712955050263,-500.0,0.00056712,120]
[322325981,1712955050274,-500.0,0.00056712,120]
[322325982,1712955050284,-500.0,0.00056712,120]
[322325983,1712955050293,-500.0,0.00056712,120]
[322325984,1712955050306,-500.0,0.00056712,120]
[322325985,1712955050316,-505.72394198,0.00056712,120]
[322325986,1712955050379,-500.0,0.00056712,120]
[322325987,1712955050395,-500.0,0.00056712,120]
[322325988,1712955050405,-500.0,0.00056712,120]
[322325989,1712955050414,-500.0,0.00056712,120]
[322325990,1712955050424,-268.87360344,0.00056712,120]
[322325991,1712955050433,-500.0,0.00056712,120]
[322325992,1712955050442,-393.3530603,0.00056712,120]
[322325993,1712955050452,-414.02794365,0.00056712,120]
[322325994,1712955050461,-411.34389216,0.00056712,120]
[322325995,1712955050471,-500.0,0.00056712,120]
[322325996,1712955050480,-500.0,0.00056712,120]
[322325997,1712955050489,-500.0,0.00056712,120]
[322325998,1712955050499,-500.0,0.00056712,120]
[322325999,1712955050508,-500.0,0.00056712,120]
[322326000,1712955050518,-297.1663235,0.00056712,120]
[322326001,1712955050528,-500.0,0.00056712,120]
[322326002,1712955050538,-500.0,0.00056712,120]
[322326003,1712955050547,-500.0,0.00056712,120]
[322326004,1712955050558,-729.85,0.00056712,120]
[322326005,1712955050568,-500.0,0.00056712,120]
[322326006,1712955050577,-412.15923293,0.00056712,120]
[322326007,1712955050588,-500.0,0.00056712,120]
[322326008,1712955050597,-500.0,0.00056712,120]
[322326009,1712955050606,-772.73,0.00056712,120]
[322326010,1712955050616,-500.0,0.00056712,120]
[322326011,1712955050625,-500.0,0.00056712,120]
[322326012,1712955050634,-500.0,0.00056712,120]
[322326013,1712955050644,-556.35122411,0.00056712,120]
[322326014,1712955050654,-315.82017064,0.00056712,120]
[322326015,1712955050663,-1547.65,0.00056712,120]
[322326016,1712955050672,-500.0,0.00056712,120]
[322326017,1712955050681,-1540.92,0.00056712,120]
[322326018,1712955050690,-500.0,0.00056712,120]
[322326019,1712955050699,-500.0,0.00056712,120]
[322326020,1712955050708,-500.0,0.00056712,120]
[322326021,1712955050718,-500.0,0.00056712,120]
[322326022,1712955050727,-500.0,0.00056712,120]
[322326023,1712955050736,-519.79491341,0.00056712,120]
[322326024,1712955050746,-853.08,0.00056712,120]
[322326025,1712955050755,-500.0,0.00056712,120]
[322326026,1712955050765,-500.0,0.00056712,120]
[322326027,1712955050775,-500.0,0.00056712,120]
[322326028,1712955050785,-500.0,0.00056712,120]
[322326029,1712955050795,-502.06828708,0.00056712,120]
[322326030,1712955050809,-500.9808839,0.00056712,120]
[322326031,1712955050820,-927.97,0.00056712,120]
[322326032,1712955050830,-503.79762772,0.00056712,120]
[322326033,1712955050840,-203.78569127,0.00056712,120]
[322326034,1712955050850,-500.0,0.00056712,120]
[322326035,1712955050860,-589.42,0.00056712,120]
[322326036,1712955050871,-500.0,0.00056712,120]
[322326037,1712955050884,-500.0,0.00056712,120]
[322326038,1712955050894,-3281.2,0.00056712,120]
[322326039,1712955050903,-3093.01,0.00056712,120]
[322326040,1712955050913,-500.0,0.00056712,120]
[322326041,1712955050923,-500.0,0.00056712,120]